fUST/lending_fUST_20250522
["ID","MTS","AMOUNT","RATE_DAILY","PERIOD"]
[361944171,1747903850558,-430.0,0.00023287,2]
[361944173,1747903850567,-627.31,0.00023287,2]
[361944175,1747903850576,-430.0,0.00023287,2]
[361944177,1747903850586,-430.0,0.00023287,2]
[361944179,1747903850595,-761.554432,0.00023287,7]
[361944181,1747903850604,-430.0,0.00023287,2]
[361944183,1747903850613,-430.0,0.00023287,2]
[361944185,1747903850623,-761.554432,0.00023287,7]
[361944187,1747903850634,-430.0,0.00023287,2]
[361944189,1747903850644,-430.0,0.00023287,2]
[361944191,1747903850654,-710.92,0.00023287,2]
[361944193,1747903850663,-620.77,0.00023287,2]
[361944195,1747903850673,-430.0,0.00023287,2]
[361944197,1747903850682,-927.85,0.00023287,2]
[361944199,1747903850691,-972.75,0.00023287,2]
[361944201,1747903850701,-430.0,0.00023287,2]
[361944203,1747903850711,-430.0,0.00023287,2]
[361944205,1747903850720,-430.0,0.00023287,2]
[361944207,1747903850729,-430.0,0.00023287,2]
[361944209,1747903850739,-430.0,0.00023287,2]
[361944211,1747903850748,-151.160155,0.00023287,7]
[361944213,1747903850758,-151.0,0.00023287,7]
[361944215,1747903850768,-1948.72,0.00023287,2]
[361944217,1747903850782,-430.0,0.00023287,2]
[361944219,1747903850791,-430.0,0.00023287,2]
[361944221,1747903850801,-652.952303,0.00023287,7]
[361944223,1747903850811,-652.952303,0.00023287,7]
[361944226,1747903850823,-430.0,0.00023287,2]
[361944228,1747903850832,-2161.981204,0.00023287,2]
[361944229,1747903850841,-2417.78620712,0.00023348,9]
[361944231,1747903850850,-1091.59785078,0.00023372,2]
[361944234,1747903850860,-2417.78620712,0.00023452,9]
[361944236,1747903850871,-459.72865298,0.00023495,2]
[361944237,1747903850881,-1463.682344,0.0002351,2]
[361944240,1747903850892,-151.0,0.00023555,7]
[361944242,1747903850902,-151.0,0.00023555,7]
[361944244,1747903850911,-151.0,0.00023555,7]
[361944246,1747903850921,-151.0,0.00023555,7]
[361944248,1747903850931,-151.0,0.00023555,7]
[361944250,1747903850941,-151.0,0.00023555,7]
[361944252,1747903850951,-818.213758,0.00023555,7]
[361944254,1747903850961,-818.213758,0.00023555,7]
[361944256,1747903850971,-151.0,0.00023555,7]
[361944258,1747903850980,-2417.78620712,0.00023555,9]
[361944260,1747903850989,-430.0,0.00023561,2]
[361944262,1747903850999,-430.0,0.00023561,2]
[361944264,1747903851009,-151.0,0.00023561,7]
[361944266,1747903851018,-151.0,0.00023561,7]
[361944268,1747903851030,-151.0,0.00023561,7]
[361944270,1747903851039,-456.57,0.00023561,2]
[361944272,1747903851049,-430.0,0.00023561,2]
[361944274,1747903851059,-794.04,0.00023561,2]
[361944276,1747903851069,-430.0,0.00023561,2]
[361944278,1747903851079,-558.34,0.00023561,2]
[361944280,1747903851089,-1146.06,0.00023561,2]
[361944282,1747903851099,-1924.26,0.00023561,2]
[361944284,1747903851109,-691.64,0.00023561,2]
[361944286,1747903851118,-430.0,0.00023561,2]
[361944289,1747903851130,-430.0,0.00023561,2]
[361944291,1747903851139,-430.0,0.00023561,2]
[361944293,1747903851149,-408.99255192,0.00023561,2]
[361944295,1747903851159,-851.98,0.00023561,2]
[361944297,1747903851168,-430.0,0.00023561,2]
[361944299,1747903851179,-430.0,0.00023561,2]
[361944301,1747903851189,-1178.0,0.00023561,2]
[361944303,1747903851198,-430.0,0.00023561,2]
[361944305,1747903851208,-430.0,0.00023561,2]
[361944307,1747903851217,-430.0,0.00023561,2]
[361944309,1747903851227,-430.0,0.00023561,2]
[361944311,1747903851237,-430.0,0.00023561,2]
[361944322,1747903851338,-627.31,0.00023561,2]
[361944324,1747903851348,-430.0,0.00023561,2]
[361944326,1747903851358,-430.0,0.00023561,2]
[361944328,1747903851368,-430.0,0.00023561,2]
[361944330,1747903851377,-430.0,0.00023561,2]
[361944332,1747903851386,-430.0,0.00023561,2]
[361944334,1747903851397,-430.0,0.00023561,2]
[361944336,1747903851406,-710.92,0.00023561,2]
[361944338,1747903851416,-620.77,0.00023561,2]
[361944340,1747903851425,-430.0,0.00023561,2]
[361944342,1747903851435,-927.85,0.00023561,2]
[361944344,1747903851445,-972.75,0.00023561,2]
[361944346,1747903851456,-430.0,0.00023561,2]
[361944348,1747903851466,-430.0,0.00023561,2]
[361944350,1747903851475,-430.0,0.00023561,2]
[361944352,1747903851485,-430.0,0.00023561,2]
[361944354,1747903851495,-430.0,0.00023561,2]
[361944357,1747903851505,-1948.72,0.00023561,2]
[361944359,1747903851516,-430.0,0.00023561,2]
[361944360,1747903851525,-430.0,0.00023561,2]
[361944362,1747903851535,-430.0,0.00023561,2]
[361944364,1747903851544,-2437.39,0.00023565,11]
[361944367,1747903851554,-459.72865298,0.00023575,2]
[361944369,1747903851563,-500.0,0.00023616,2]
[361944371,1747903851573,-2417.78620712,0.00023659,9]
[361944373,1747903851582,-25034.41007871,0.0002366,2]
[361944375,1747903851591,-151.0,0.00023676,2]
[361944377,1747903851601,-215.0738,0.00023676,2]
[361944379,1747903851610,-2417.78620712,0.00023762,9]
[361944381,1747903851620,-12896.7358458,0.000238,2]
[361944383,1747903851629,-120235.36018606,0.000238,2]
[361944397,1747903851757,-5261.49878068,0.000238,2]
[361944413,1747903851978,-572.325,0.00023287,2]
[361944419,1747903852122,-430.0,0.00021917,2]
[361944421,1747903852132,-1589.656204,0.00023287,2]
[361944422,1747903852142,-16247.02221712,0.000238,2]
[361944423,1747903852153,-1919.19,0.000238,2]
[361944424,1747903852212,-2533.11630208,0.00021698,2]
[361944425,1747903852224,-2466.88369792,0.00021698,2]
[361944426,1747903852234,-9204.59654531,0.000238,2]
[361944427,1747903852498,-6622.99982498,0.000238,2]
[361944428,1747903852510,-9062.5000015,0.000238,2]
[361945936,1747904000179,174.0,0.0001874,3]
[361945937,1747904125339,168.533778,0.00013699,2]
[361945939,1747904247045,5000.0,0.0002,2]
[361945940,1747904262822,5000.0,0.0002,2]
[361945941,1747904279598,5000.0,0.0002,2]
[361945942,1747904296025,5000.0,0.0002,2]
[361945943,1747904313396,5000.0,0.0002,2]
[361945944,1747904330666,5000.0,0.0002,2]
[361945945,1747904347873,5000.0,0.0002,2]
[361945946,1747904363448,5000.0,0.0002,2]
[361945947,1747904380001,5000.0,0.0002,2]
[361945948,1747904395762,5000.0,0.0002,2]
[361945949,1747904413158,5000.0,0.0002,2]
[361945950,1747904428847,5000.0,0.0002,2]
[361945951,1747904439473,2500.0,0.0002,10]
[361945952,1747904445097,5000.0,0.0002,2]
[361945953,1747904460990,1715.52284766,0.0002,2]
[361945954,1747904582340,2922.17202555,0.0002,2]
[361945955,1747904702969,4352.10231924,0.0002,2]
[361945956,1747904718959,1794.73013209,0.0002,2]
[361945957,1747904766291,5000.0,0.0002,2]
[361945958,1747904782816,5000.0,0.0002,2]
[361945959,1747904799456,5000.0,0.0002,2]
[361945972,1747904815539,5000.0,0.0002,2]
[361945973,1747904831602,5000.0,0.0002,2]
[361945974,1747904837226,-168.533778,0.00020187,2]
[361945975,1747904837342,-250.0,0.00020695,2]
[361945976,1747904837367,-1200.0,0.000208,2]
[361945977,1747904837391,-300.0,0.000208,2]
[361945978,1747904837413,-300.0,0.000208,2]
[361945979,1747904837436,-300.0,0.000208,2]
[361945980,1747904837459,-300.0,0.000208,2]
[361945981,1747904837480,-4598.86170142,0.00020801,2]
[361945982,1747904947088,-1938.02421159,0.00020593,2]
[361945983,1747904947110,-635.27938841,0.00020604,2]
[361945984,1747904962133,-983.42633204,0.00020398,2]
[361945985,1747904962156,-152.18118516,0.00020604,2]
[361945990,1747905023674,224.663222,0.00019786,2]
[361945991,1747905031018,1626.0,0.0002,2]
[361946034,1747905032632,-1103.4,0.00020398,2]
[361946053,1747905032794,-3896.6,0.00020398,2]
[361946055,1747905032804,-38.37996043,0.00020604,2]
[361946057,1747905032813,-171.220195,0.00020781,2]
[361946059,1747905032823,-5401.13829858,0.00020801,2]
[361946061,1747905032832,-157.693434,0.00020909,2]
[361946063,1747905032841,-1200.0,0.00020999,2]
[361946065,1747905032851,-300.0,0.00020999,2]
[361946067,1747905032860,-300.0,0.00020999,2]
[361946069,1747905032869,-300.0,0.00020999,2]
[361946070,1747905032879,-4000.04240332,0.00021,2]
[361946071,1747905032889,-230.90831862,0.00021258,2]
[361946072,1747905032898,-2636.45849818,0.00021817,2]
[361946074,1747905032907,-358.14591339,0.00021817,2]
[361946076,1747905032916,-937.97118719,0.00021848,2]
[361946078,1747905032926,-349.37482066,0.00021899,2]
[361946080,1747905032935,-500.0,0.00021899,2]
[361946082,1747905032944,-500.0,0.00021899,2]
[361946084,1747905032954,-500.0,0.00021899,2]
[361946086,1747905032963,-500.0,0.00021899,2]
[361946088,1747905032972,-500.0,0.00021899,2]
[361946090,1747905032982,-500.0,0.00021899,2]
[361946092,1747905032991,-500.0,0.00021899,2]
[361946094,1747905033000,-500.0,0.00021899,2]
[361946096,1747905033009,-500.0,0.00021899,2]
[361946098,1747905033018,-500.0,0.00021899,2]
[361946100,1747905033028,-500.0,0.00021899,2]
[361946102,1747905033038,-500.0,0.00021899,2]
[361946104,1747905033047,-500.0,0.00021899,2]
[361946106,1747905033057,-500.0,0.00021899,2]
[361946107,1747905033068,-625.90180365,0.00021899,2]
[361946110,1747905033077,-500.0,0.00021899,2]
[361946112,1747905033087,-198.21792431,0.00021899,2]
[361946114,1747905033097,-488.06202377,0.00021899,2]
[361946116,1747905033106,-3225.94447759,0.000219,6]
[361946118,1747905033116,-500.0,0.00021916,2]
[361946119,1747905033127,-500.0,0.00021916,2]
[361946121,1747905033136,-505.04010895,0.00021916,2]
[361946123,1747905033146,-500.0,0.00021916,2]
[361946125,1747905033157,-500.0,0.00021916,2]
[361946127,1747905033169,-500.0,0.00021916,2]
[361946128,1747905033178,-500.0,0.00021916,2]
[361946130,1747905033189,-449.44777055,0.00021916,2]
[361946131,1747905033200,-500.0,0.00021916,2]
[361946132,1747905033210,-500.0,0.00021916,2]
[361946133,1747905033220,-414.61343938,0.00021916,2]
[361946134,1747905033231,-500.0,0.00021916,2]
[361946135,1747905033241,-500.0,0.00021917,2]
[361946136,1747905033251,-450.0,0.00021917,2]
[361946137,1747905033262,-450.0,0.00021917,2]
[361946138,1747905033272,-450.0,0.00021917,2]
[361946139,1747905033282,-450.0,0.00021917,2]
[361946140,1747905033291,-430.0,0.00021917,2]
[361946141,1747905033300,-415.22696666,0.00021917,2]
[361946142,1747905033311,-405.42894028,0.00021917,2]
[361946143,1747905033322,-431.21686357,0.00021917,2]
[361946144,1747905033332,-402.14819521,0.00021917,2]
[361946145,1747905033342,-430.0,0.00021917,2]
[361946146,1747905033353,-400.36788846,0.00021917,2]
[361946147,1747905033363,-469.4027431,0.00021917,2]
[361946148,1747905033374,-250.9357192,0.00021917,2]
[361946149,1747905033384,-430.0,0.00021917,2]
[361946150,1747905033395,-463.25246332,0.00021917,2]
[361946151,1747905033406,-430.0,0.00021917,2]
[361946152,1747905033415,-450.97233275,0.00021917,2]
[361946153,1747905033425,-406.01367397,0.00021917,2]
[361946154,1747905033436,-309.41176861,0.00021917,2]
[361946155,1747905033448,-350.0,0.00021917,2]
[361946156,1747905033459,-270.67325098,0.00021917,2]
[361946157,1747905033469,-450.0,0.00021917,2]
[361946158,1747905033480,-350.0,0.00021917,2]
[361946159,1747905033489,-404.38317972,0.00021917,2]
[361946160,1747905033500,-430.0,0.00021917,2]
[361946161,1747905033510,-355.98,0.00021917,2]
[361946162,1747905033520,-350.0,0.00021917,2]
[361946163,1747905033531,-453.33,0.00021917,2]
[361946164,1747905033541,-400.0,0.00021917,2]
[361946165,1747905033551,-351.57944382,0.00021917,2]
[361946166,1747905033562,-350.0,0.00021917,2]
[361946167,1747905033572,-450.0,0.00021917,2]
[361946168,1747905033582,-430.0,0.00021917,2]
[361946169,1747905033593,-430.0,0.00021917,2]
[361946170,1747905033604,-400.0,0.00021917,2]
[361946171,1747905033614,-400.0,0.00021917,2]
[361946172,1747905033625,-450.0,0.00021917,2]
[361946173,1747905033635,-357.17305841,0.00021917,2]
[361946174,1747905033646,-450.0,0.00021917,2]
[361946175,1747905033656,-450.0,0.00021917,2]
[361946176,1747905033666,-400.0,0.00021917,2]
[361946177,1747905033675,-430.0,0.00021917,2]
[361946178,1747905033685,-456.66,0.00021917,2]
[361946179,1747905033696,-159.76128146,0.00021917,2]
[361946180,1747905033707,-430.0,0.00021917,2]
[361946181,1747905033718,-450.0,0.00021917,2]
[361946182,1747905033728,-385.96118111,0.00021917,2]
[361946183,1747905033739,-430.0,0.00021917,2]
[361946184,1747905033749,-351.41348252,0.00021917,2]
[361946185,1747905033760,-401.11114694,0.00021917,2]
[361946186,1747905033770,-350.0,0.00021917,2]
[361946187,1747905033780,-430.0,0.00021917,2]
[361946188,1747905033791,-350.0,0.00021917,2]
[361946189,1747905033801,-450.0,0.00021917,2]
[361946190,1747905033811,-430.0,0.00021917,2]
[361946191,1747905033957,-430.0,0.00021917,2]
[361946192,1747905033968,-261.92,0.00021917,2]
[361946193,1747905033979,-400.0,0.00021917,2]
[361946194,1747905033989,-430.0,0.00021917,2]
[361946195,1747905034000,-430.0,0.00021917,2]
[361946196,1747905034010,-450.0,0.00021917,2]
[361946197,1747905034022,-430.0,0.00021917,2]
[361946198,1747905034033,-400.0,0.00021917,2]
[361946199,1747905034043,-430.0,0.00021917,2]
[361946200,1747905034054,-430.0,0.00021917,2]
[361946201,1747905034064,-300.59174635,0.00021917,2]
[361946202,1747905034075,-450.0,0.00021917,2]
[361946203,1747905034086,-400.0,0.00021917,2]
[361946204,1747905034098,-450.0,0.00021917,2]
[361946205,1747905034108,-430.0,0.00021917,2]
[361946206,1747905034119,-402.27465996,0.00021917,2]
[361946207,1747905034130,-430.0,0.00021917,2]
[361946208,1747905034140,-400.0,0.00021917,2]
[361946209,1747905034151,-450.0,0.00021917,2]
[361946210,1747905034162,-1000.0,0.00021917,2]
[361946211,1747905034177,-430.0,0.00021917,2]
[361946212,1747905034187,-401.69829456,0.00021917,2]
[361946213,1747905034200,-450.0,0.00021917,2]
[361946214,1747905034211,-400.0,0.00021917,2]
[361946215,1747905034222,-450.0,0.00021917,2]
[361946216,1747905034232,-262.21817373,0.00021917,2]
[361946217,1747905034242,-450.0,0.00021917,2]
[361946218,1747905034254,-430.0,0.00021917,2]
[361946219,1747905034264,-430.0,0.00021917,2]
[361946220,1747905034274,-350.0,0.00021917,2]
[361946221,1747905034284,-430.0,0.00021917,2]
[361946222,1747905034294,-400.0,0.00021917,2]
[361946223,1747905034304,-430.0,0.00021917,2]
[361946224,1747905034315,-403.2084733,0.00021917,2]
[361946225,1747905034324,-430.0,0.00021917,2]
[361946226,1747905034334,-430.0,0.00021917,2]
[361946227,1747905034345,-400.0,0.00021917,2]
[361946228,1747905034357,-400.0,0.00021917,2]
[361946229,1747905034367,-400.0,0.00021917,2]
[361946230,1747905034377,-450.0,0.00021917,2]
[361946231,1747905034387,-249.15449928,0.00021917,2]
[361946232,1747905034397,-500.01100002,0.00021917,2]
[361946233,1747905034406,-450.0,0.00021917,2]
[361946234,1747905034417,-430.0,0.00021917,2]
[361946235,1747905034426,-405.50696264,0.00021917,2]
[361946236,1747905034436,-401.48409731,0.00021917,2]
[361946237,1747905034446,-430.0,0.00021917,2]
[361946238,1747905034456,-430.0,0.00021917,2]
[361946239,1747905034466,-457.37422099,0.00021917,2]
[361946240,1747905034475,-430.0,0.00021917,2]
[361946241,1747905034485,-430.0,0.00021917,2]
[361946242,1747905034496,-430.0,0.00021917,2]
[361946243,1747905034506,-400.0,0.00021917,2]
[361946244,1747905034515,-350.0,0.00021917,2]
[361946245,1747905034526,-430.0,0.00021917,2]
[361946246,1747905034536,-450.0,0.00021917,2]
[361946247,1747905034546,-450.0,0.00021917,2]
[361946248,1747905034556,-400.0,0.00021917,2]
[361946249,1747905034566,-430.0,0.00021917,2]
[361946250,1747905034576,-450.0,0.00021917,2]
[361946251,1747905034590,-430.0,0.00021917,2]
[361946252,1747905034600,-430.0,0.00021917,2]
[361946253,1747905034610,-430.0,0.00021917,2]
[361946254,1747905034620,-430.0,0.00021917,2]
[361946255,1747905034631,-430.0,0.00021917,2]
[361946256,1747905034642,-450.0,0.00021917,2]
[361946257,1747905034653,-450.0,0.00021917,2]
[361946258,1747905034663,-430.0,0.00021917,2]
[361946259,1747905034674,-430.0,0.00021917,2]
[361946260,1747905034684,-430.0,0.00021917,2]
[361946261,1747905034696,-430.0,0.00021917,2]
[361946262,1747905034706,-450.0,0.00021917,2]
[361946263,1747905034717,-402.67693055,0.00021917,2]
[361946264,1747905034728,-401.04388721,0.00021917,2]
[361946265,1747905034738,-430.0,0.00021917,2]
[361946266,1747905034748,-238.6573862,0.00021917,2]
[361946267,1747905034759,-450.0,0.00021917,2]
[361946268,1747905034770,-430.0,0.00021917,2]
[361946269,1747905034780,-450.0,0.00021917,2]
[361946270,1747905034790,-430.0,0.00021917,2]
[361946271,1747905034800,-500.0,0.00021917,2]
[361946272,1747905034810,-500.0,0.00021917,2]
[361946273,1747905034821,-500.0,0.00021917,2]
[361946274,1747905034831,-500.0,0.00021917,2]
[361946275,1747905034841,-500.0,0.00021917,2]
[361946276,1747905034851,-500.0,0.00021917,2]
[361946277,1747905034861,-500.0,0.00021917,2]
[361946278,1747905034871,-500.0,0.00021917,2]
[361946279,1747905034882,-430.0,0.00021917,2]
[361946280,1747905034893,-500.0,0.00021917,2]
[361946281,1747905034902,-500.0,0.00021917,2]
[361946282,1747905034911,-500.0,0.00021917,2]
[361946283,1747905034920,-500.0,0.00021917,2]
[361946284,1747905034930,-401.76865595,0.00021917,2]
[361946285,1747905034939,-400.0,0.00021917,2]
[361946286,1747905034950,-500.0,0.00021917,2]
[361946287,1747905034960,-450.0,0.00021917,2]
[361946288,1747905034970,-336.26624562,0.00021917,2]
[361946289,1747905034981,-450.0,0.00021917,2]
[361946290,1747905034991,-430.0,0.00021917,2]
[361946291,1747905035001,-430.0,0.00021917,2]
[361946292,1747905035010,-450.0,0.00021917,2]
[361946293,1747905035021,-430.0,0.00021917,2]
[361946294,1747905035030,-430.0,0.00021917,2]
[361946295,1747905035039,-400.0,0.00021917,2]
[361946296,1747905035048,-450.0,0.00021917,2]
[361946297,1747905035058,-430.0,0.00021917,2]
[361946298,1747905035068,-452.67691012,0.00021917,2]
[361946299,1747905035078,-451.84824957,0.00021917,2]
[361946300,1747905035088,-456.54368725,0.00021917,2]
[361946301,1747905035098,-453.78701563,0.00021917,2]
[361946302,1747905035108,-430.0,0.00021917,2]
[361946303,1747905035118,-450.0,0.00021917,2]
[361946304,1747905035127,-453.90236767,0.00021917,2]
[361946305,1747905035136,-352.24941067,0.00021917,2]
[361946306,1747905035146,-400.0,0.00021917,2]
[361946307,1747905035157,-430.0,0.00021917,2]
[361946308,1747905035169,-452.29148004,0.00021917,2]
[361946309,1747905035179,-450.0,0.00021917,2]
[361946310,1747905035188,-451.29620727,0.00021917,2]
[361946311,1747905035199,-457.28978839,0.00021917,2]
[361946312,1747905035208,-401.71960326,0.00021917,2]
[361946313,1747905035218,-430.0,0.00021917,2]
[361946314,1747905035227,-430.0,0.00021917,2]
[361946315,1747905035239,-402.16809624,0.00021917,2]
[361946316,1747905035249,-430.0,0.00021917,2]
[361946317,1747905035260,-400.0,0.00021917,2]
[361946318,1747905035270,-450.0,0.00021917,2]
[361946319,1747905035280,-430.0,0.00021917,2]
[361946320,1747905035290,-430.0,0.00021917,2]
[361946321,1747905035300,-430.0,0.00021917,2]
[361946322,1747905035309,-402.42523467,0.00021917,2]
[361946323,1747905035319,-489.79383217,0.00021917,2]
[361946324,1747905035330,-403.11709134,0.00021917,2]
[361946325,1747905035340,-450.0,0.00021917,2]
[361946326,1747905035351,-273.19222269,0.00021917,2]
[361946327,1747905035362,-450.0,0.00021917,2]
[361946328,1747905035372,-430.0,0.00021917,2]
[361946329,1747905035383,-403.58921252,0.00021917,2]
[361946330,1747905035395,-401.93836348,0.00021917,2]
[361946331,1747905035406,-450.0,0.00021917,2]
[361946332,1747905035417,-430.0,0.00021917,2]
[361946333,1747905035428,-450.0,0.00021917,2]
[361946334,1747905035438,-450.0,0.00021917,2]
[361946335,1747905035451,-450.0,0.00021917,2]
[361946336,1747905035462,-450.0,0.00021917,2]
[361946337,1747905035473,-508.12,0.00021917,2]
[361946338,1747905035483,-430.0,0.00021917,2]
[361946339,1747905035493,-464.47531691,0.00021917,2]
[361946340,1747905035503,-508.12,0.00021917,2]
[361946341,1747905035513,-508.12,0.00021917,2]
[361946342,1747905035523,-508.12,0.00021917,2]
[361946343,1747905035532,-508.12,0.00021917,2]
[361946344,1747905035542,-508.12,0.00021917,2]
[361946345,1747905035551,-430.0,0.00021917,2]
[361946346,1747905035562,-400.0,0.00021917,2]
[361946347,1747905035572,-283.36749464,0.00021917,2]
[361946348,1747905035582,-430.0,0.00021917,2]
[361946349,1747905035592,-430.0,0.00021917,2]
[361946350,1747905035602,-430.0,0.00021917,2]
[361946351,1747905035612,-430.0,0.00021917,2]
[361946352,1747905035623,-428.19,0.00021917,2]
[361946353,1747905035634,-353.01183693,0.00021917,2]
[361946354,1747905035644,-450.0,0.00021917,2]
[361946355,1747905035653,-450.0,0.00021917,2]
[361946356,1747905035663,-450.0,0.00021917,2]
[361946357,1747905035672,-354.03755945,0.00021917,2]
[361946358,1747905035682,-400.0,0.00021917,2]
[361946359,1747905035692,-430.0,0.00021917,2]
[361946360,1747905035702,-450.0,0.00021917,2]
[361946361,1747905035712,-450.0,0.00021917,2]
[361946362,1747905035722,-430.0,0.00021917,2]
[361946363,1747905035731,-336.15250183,0.00021917,2]
[361946364,1747905035742,-400.0,0.00021917,2]
[361946365,1747905035752,-400.0,0.00021917,2]
[361946366,1747905035762,-430.0,0.00021917,2]
[361946367,1747905035771,-430.0,0.00021917,2]
[361946368,1747905035781,-450.0,0.00021917,2]
[361946369,1747905035791,-400.0,0.00021917,2]
[361946370,1747905035801,-430.0,0.00021917,2]
[361946371,1747905035811,-400.0,0.00021917,2]
[361946372,1747905035821,-450.0,0.00021917,2]
[361946373,1747905035832,-450.0,0.00021917,2]
[361946374,1747905035843,-430.0,0.00021917,2]
[361946375,1747905035853,-404.06598332,0.00021917,2]
[361946376,1747905035863,-400.0,0.00021917,2]
[361946377,1747905035873,-406.5015007,0.00021917,2]
[361946378,1747905035883,-430.0,0.00021917,2]
[361946379,1747905035893,-402.61772283,0.00021917,2]
[361946380,1747905035903,-524.08060398,0.00021917,2]
[361946381,1747905035912,-401.40508588,0.00021917,2]
[361946382,1747905035922,-430.0,0.00021917,2]
[361946383,1747905035932,-430.0,0.00021917,2]
[361946384,1747905035942,-456.38910962,0.00021917,2]
[361946385,1747905035952,-450.0,0.00021917,2]
[361946386,1747905035962,-430.0,0.00021917,2]
[361946387,1747905035971,-450.0,0.00021917,2]
[361946388,1747905035981,-430.0,0.00021917,2]
[361946389,1747905035991,-406.53251635,0.00021917,2]
[361946390,1747905036000,-430.0,0.00021917,2]
[361946391,1747905036010,-430.0,0.00021917,2]
[361946392,1747905036020,-430.0,0.00021917,2]
[361946393,1747905036030,-400.0,0.00021917,2]
[361946394,1747905036039,-430.0,0.00021917,2]
[361946395,1747905036049,-450.0,0.00021917,2]
[361946396,1747905036059,-430.0,0.00021917,2]
[361946397,1747905036069,-430.0,0.00021917,2]
[361946398,1747905036079,-430.0,0.00021917,2]
[361946399,1747905036088,-450.0,0.00021917,2]
[361946400,1747905036097,-430.0,0.00021917,2]
[361946401,1747905036107,-450.0,0.00021917,2]
[361946402,1747905036117,-402.48074581,0.00021917,2]
[361946403,1747905036126,-412.59597403,0.00021917,2]
[361946404,1747905036136,-578.48,0.00021917,2]
[361946405,1747905036244,-503.38170601,0.00021917,2]
[361946406,1747905036256,-430.0,0.00021917,2]
[361946407,1747905036267,-430.0,0.00021917,2]
[361946408,1747905036276,-430.0,0.00021917,2]
[361946409,1747905036286,-401.47311142,0.00021917,2]
[361946410,1747905036296,-514.01,0.00021917,2]
[361946411,1747905036305,-430.0,0.00021917,2]
[361946412,1747905036315,-430.0,0.00021917,2]
[361946413,1747905036325,-430.0,0.00021917,2]
[361946414,1747905036334,-430.0,0.00021917,2]
[361946415,1747905036345,-459.82382833,0.00021917,2]
[361946416,1747905036355,-430.0,0.00021917,2]
[361946417,1747905036365,-430.0,0.00021917,2]
[361946418,1747905036374,-430.0,0.00021917,2]
[361946419,1747905036384,-402.3360625,0.00021917,2]
[361946420,1747905036393,-301.02993744,0.00021917,2]
[361946421,1747905036402,-414.55494655,0.00021917,2]
[361946422,1747905036413,-450.0,0.00021917,2]
[361946423,1747905036422,-430.0,0.00021917,2]
[361946424,1747905036432,-293.27749345,0.00021917,2]
[361946425,1747905036441,-403.6239542,0.00021917,2]
[361946426,1747905036451,-403.47559268,0.00021917,2]
[361946427,1747905036461,-434.98418485,0.00021917,2]
[361946428,1747905036471,-430.0,0.00021917,2]
[361946429,1747905036480,-430.0,0.00021917,2]
[361946430,1747905036489,-430.97951056,0.00021917,2]
[361946431,1747905036499,-430.0,0.00021917,2]
[361946432,1747905036508,-430.0,0.00021917,2]
[361946433,1747905036517,-430.0,0.00021917,2]
[361946434,1747905036527,-430.0,0.00021917,2]
[361946435,1747905036537,-400.0,0.00021917,2]
[361946436,1747905036546,-430.0,0.00021917,2]